[Event "*** Titled Tuesday Blitz"]
[Site "Chess.com"]
[Date "2020.04.28"]
[Round "2"]
[White "kingofkolkata"]
[Black "uchenic"]
[Result "0-1"]
[WhiteElo "2246"]
[BlackElo "2468"]
[TimeControl "180+1"]
[EndTime "10:19:34 PDT"]
[Termination "uchenic won by checkmate"]

1. d4 {[%clk 0:03:00.9]} 1... d5 {[%clk 0:02:59.9]} 2. c4 {[%clk 0:03:00.6]}
2... e6 {[%clk 0:03:00.3]} 3. Nf3 {[%clk 0:03:00.9]} 3... c6 {[%clk 0:03:00.5]}
4. g3 {[%clk 0:02:58.7]} 4... dxc4 {[%clk 0:02:59.6]} 5. Bg2 {[%clk 0:02:58.2]}
5... Nf6 {[%clk 0:02:59.7]} 6. Ne5 {[%clk 0:02:55.4]} 6... Nbd7 {[%clk 0:02:58]}
7. Nxc4 {[%clk 0:02:55.1]} 7... Nb6 {[%clk 0:02:56.9]} 8. Ne5 {[%clk 0:02:55.3]}
8... Bd6 {[%clk 0:02:53.5]} 9. Nf3 {[%clk 0:02:51.3]} 9... O-O {[%clk
0:02:51.3]} 10. O-O {[%clk 0:02:50.9]} 10... c5 {[%clk 0:02:36.3]} 11. dxc5
{[%clk 0:02:38]} 11... Bxc5 {[%clk 0:02:35.9]} 12. Qc2 {[%clk 0:02:38]} 12...
Be7 {[%clk 0:02:21.1]} 13. Nc3 {[%clk 0:02:37.1]} 13... Nbd5 {[%clk 0:02:11.3]}
14. Rd1 {[%clk 0:02:31.8]} 14... Qc7 {[%clk 0:02:06.4]} 15. Bg5 {[%clk
0:02:21.3]} 15... h6 {[%clk 0:01:58.3]} 16. Bxf6 {[%clk 0:02:19.4]} 16... Bxf6
{[%clk 0:01:58.2]} 17. Rac1 {[%clk 0:02:18.9]} 17... Nxc3 {[%clk 0:01:56.6]} 18.
bxc3 {[%clk 0:02:19]} 18... Bd7 {[%clk 0:01:49.9]} 19. Nd4 {[%clk 0:02:18.9]}
19... Rac8 {[%clk 0:01:44.3]} 20. Qb3 {[%clk 0:02:15.1]} 20... Bxd4 {[%clk
0:01:31.7]} 21. Rxd4 {[%clk 0:02:09.8]} 21... Bc6 {[%clk 0:01:28.3]} 22. Rc4
{[%clk 0:02:05.7]} 22... Rfd8 {[%clk 0:01:25.1]} 23. Rxc6 {[%clk 0:01:55.6]}
23... bxc6 {[%clk 0:01:23.8]} 24. Rd1 {[%clk 0:01:52.2]} 24... c5 {[%clk
0:01:18]} 25. h4 {[%clk 0:01:26.6]} 25... Rxd1+ {[%clk 0:01:15.8]} 26. Qxd1
{[%clk 0:01:27.5]} 26... Rd8 {[%clk 0:01:16]} 27. Qa4 {[%clk 0:01:25.3]} 27...
Qd7 {[%clk 0:01:13.6]} 28. Qa5 {[%clk 0:01:21.9]} 28... c4 {[%clk 0:01:02.9]}
29. Bf3 {[%clk 0:01:18.6]} 29... g6 {[%clk 0:00:55.5]} 30. Kg2 {[%clk
0:01:17.8]} 30... h5 {[%clk 0:00:46.4]} 31. Qg5 {[%clk 0:01:10.8]} 31... Qd2
{[%clk 0:00:42]} 32. Qa5 {[%clk 0:01:06.8]} 32... Rd7 {[%clk 0:00:33.7]} 33. Bc6
{[%clk 0:00:58.6]} 33... Rd8 {[%clk 0:00:27.3]} 34. Bf3 {[%clk 0:00:50.8]} 34...
Qd7 {[%clk 0:00:24.4]} 35. Qg5 {[%clk 0:00:43.4]} 35... Rc8 {[%clk 0:00:23.6]}
36. Qa5 {[%clk 0:00:27.8]} 36... Qc7 {[%clk 0:00:23.5]} 37. Qg5 {[%clk
0:00:25.4]} 37... Qc5 {[%clk 0:00:23.6]} 38. Qf6 {[%clk 0:00:19.7]} 38... a5
{[%clk 0:00:22.5]} 39. Qf4 {[%clk 0:00:11.5]} 39... Qf5 {[%clk 0:00:20.5]} 40.
Qd4 {[%clk 0:00:10.2]} 40... e5 {[%clk 0:00:20]} 41. Qd5 {[%clk 0:00:05.8]}
41... e4 {[%clk 0:00:19.6]} 42. Bxe4 {[%clk 0:00:05.5]} 42... Qxd5 {[%clk
0:00:19.8]} 43. Bxd5 {[%clk 0:00:06.4]} 43... Rc5 {[%clk 0:00:19.5]} 44. e4
{[%clk 0:00:06.6]} 44... Kg7 {[%clk 0:00:18.8]} 45. Kf3 {[%clk 0:00:07]} 45...
f5 {[%clk 0:00:18.7]} 46. Ke3 {[%clk 0:00:05.9]} 46... Kf6 {[%clk 0:00:18.9]}
47. Kd4 {[%clk 0:00:05.7]} 47... Rc8 {[%clk 0:00:18]} 48. e5+ {[%clk 0:00:04.9]}
48... Ke7 {[%clk 0:00:17.7]} 49. Bxc4 {[%clk 0:00:05]} 49... Rb8 {[%clk
0:00:17.7]} 50. f4 {[%clk 0:00:04.3]} 50... Rb2 {[%clk 0:00:17.5]} 51. Bb3
{[%clk 0:00:04.4]} 51... Rg2 {[%clk 0:00:17.2]} 52. Kc5 {[%clk 0:00:03.5]} 52...
Rxg3 {[%clk 0:00:17.3]} 53. c4 {[%clk 0:00:04]} 53... Rf3 {[%clk 0:00:16.8]} 54.
Kb6 {[%clk 0:00:04.2]} 54... Rxf4 {[%clk 0:00:16.6]} 55. c5 {[%clk 0:00:04.8]}
55... Rxh4 {[%clk 0:00:16.3]} 56. c6 {[%clk 0:00:05.2]} 56... Rh3 {[%clk
0:00:16.4]} 57. Bd5 {[%clk 0:00:03.8]} 57... Rc3 {[%clk 0:00:16]} 58. c7 {[%clk
0:00:03.1]} 58... Rxc7 {[%clk 0:00:14.3]} 59. Kxc7 {[%clk 0:00:03.1]} 59... g5
{[%clk 0:00:14.7]} 60. Kc6 {[%clk 0:00:01.8]} 60... g4 {[%clk 0:00:14.6]} 61.
Kb5 {[%clk 0:00:02]} 61... f4 {[%clk 0:00:14.1]} 62. Bg2 {[%clk 0:00:01.3]}
62... f3 {[%clk 0:00:14.1]} 63. Bf1 {[%clk 0:00:02.2]} 63... h4 {[%clk
0:00:14.6]} 64. Kxa5 {[%clk 0:00:03]} 64... h3 {[%clk 0:00:15.1]} 65. Kb5 {[%clk
0:00:03.6]} 65... h2 {[%clk 0:00:15.4]} 66. a4 {[%clk 0:00:04.5]} 66... h1=Q
{[%clk 0:00:15.3]} 67. Bc4 {[%clk 0:00:04]} 67... Qb1+ {[%clk 0:00:14.8]} 68.
Ka6 {[%clk 0:00:04.2]} 68... Qb4 {[%clk 0:00:14.4]} 69. Bb5 {[%clk 0:00:03.9]}
69... g3 {[%clk 0:00:14.6]} 70. a5 {[%clk 0:00:04.3]} 70... g2 {[%clk
0:00:14.9]} 71. Kb6 {[%clk 0:00:05.2]} 71... g1=Q+ {[%clk 0:00:14.7]} 72. Ka6
{[%clk 0:00:04.6]} 72... Qgc5 {[%clk 0:00:14]} 73. e6 {[%clk 0:00:05.5]} 73...
Qbxb5# {[%clk 0:00:13.9]} 0-1

[Event "*** Titled Tuesday Blitz"]
[Site "Chess.com"]
[Date "2020.04.28"]
[Round "2"]
[White "RobertoJBM"]
[Black "AvitalBor"]
[Result "1/2-1/2"]
[WhiteElo "2549"]
[BlackElo "2826"]
[TimeControl "180+1"]
[EndTime "10:19:36 PDT"]
[Termination "Game drawn - insufficient material"]

1. d4 {[%clk 0:03:00.9]} 1... e6 {[%clk 0:02:59.6]} 2. c4 {[%clk 0:02:59.6]}
2... Bb4+ {[%clk 0:02:59.5]} 3. Bd2 {[%clk 0:02:59.4]} 3... a5 {[%clk
0:02:59.8]} 4. Nf3 {[%clk 0:02:57.1]} 4... Nf6 {[%clk 0:02:53.7]} 5. g3 {[%clk
0:02:56.5]} 5... Nc6 {[%clk 0:02:52.6]} 6. Bg2 {[%clk 0:02:56.3]} 6... d6 {[%clk
0:02:53.1]} 7. O-O {[%clk 0:02:55.9]} 7... e5 {[%clk 0:02:53.4]} 8. Bg5 {[%clk
0:02:51.5]} 8... exd4 {[%clk 0:02:44]} 9. Nxd4 {[%clk 0:02:48.9]} 9... Nxd4
{[%clk 0:02:44.2]} 10. Qxd4 {[%clk 0:02:49.8]} 10... Bc5 {[%clk 0:02:44.8]} 11.
Qh4 {[%clk 0:02:34.5]} 11... O-O {[%clk 0:02:31.3]} 12. Nc3 {[%clk 0:02:32.5]}
12... h6 {[%clk 0:02:31.3]} 13. Bxf6 {[%clk 0:02:29.2]} 13... Qxf6 {[%clk
0:02:31.2]} 14. Qxf6 {[%clk 0:02:28.9]} 14... gxf6 {[%clk 0:02:32.1]} 15. Nd5
{[%clk 0:02:22.4]} 15... Kg7 {[%clk 0:01:59.8]} 16. Nxc7 {[%clk 0:02:15.7]}
16... Rb8 {[%clk 0:02:00.3]} 17. Rfd1 {[%clk 0:01:56.1]} 17... Bg4 {[%clk
0:01:55.6]} 18. Bf3 {[%clk 0:01:50.5]} 18... Bxf3 {[%clk 0:01:55.5]} 19. exf3
{[%clk 0:01:51.4]} 19... Rbc8 {[%clk 0:01:53.2]} 20. Nb5 {[%clk 0:01:50.1]}
20... Rfe8 {[%clk 0:01:50.2]} 21. Kf1 {[%clk 0:01:44.6]} 21... Re6 {[%clk
0:01:46.5]} 22. Re1 {[%clk 0:01:36.6]} 22... Bb4 {[%clk 0:01:46.4]} 23. Rxe6
{[%clk 0:01:35.6]} 23... fxe6 {[%clk 0:01:47.3]} 24. Rc1 {[%clk 0:01:31.7]}
24... d5 {[%clk 0:01:39.6]} 25. b3 {[%clk 0:01:31.5]} 25... Kg6 {[%clk
0:01:35.1]} 26. f4 {[%clk 0:01:29.2]} 26... e5 {[%clk 0:01:30.5]} 27. fxe5
{[%clk 0:01:24.8]} 27... fxe5 {[%clk 0:01:31.4]} 28. Ke2 {[%clk 0:01:24.6]}
28... Kf5 {[%clk 0:01:28.7]} 29. f3 {[%clk 0:01:14.8]} 29... h5 {[%clk
0:01:28.2]} 30. Kd3 {[%clk 0:00:50.7]} 30... Rd8 {[%clk 0:01:18.2]} 31. Rc2
{[%clk 0:00:46.2]} 31... h4 {[%clk 0:01:04]} 32. Nc7 {[%clk 0:00:36.5]} 32...
dxc4+ {[%clk 0:00:52.3]} 33. Kxc4 {[%clk 0:00:37.4]} 33... hxg3 {[%clk
0:00:51.7]} 34. hxg3 {[%clk 0:00:36.3]} 34... Rd4+ {[%clk 0:00:37.6]} 35. Kb5
{[%clk 0:00:36.2]} 35... Rd3 {[%clk 0:00:38.1]} 36. Rf2 {[%clk 0:00:28.7]} 36...
Be1 {[%clk 0:00:36.8]} 37. Rf1 {[%clk 0:00:23.3]} 37... Bxg3 {[%clk 0:00:36.4]}
38. Kxa5 {[%clk 0:00:22.8]} 38... Rd2 {[%clk 0:00:36.6]} 39. a4 {[%clk
0:00:20.6]} 39... Bf2 {[%clk 0:00:36.8]} 40. Nb5 {[%clk 0:00:17.8]} 40... Kf4
{[%clk 0:00:36.5]} 41. Nc3 {[%clk 0:00:16.6]} 41... Kxf3 {[%clk 0:00:34.2]} 42.
b4 {[%clk 0:00:16.4]} 42... e4 {[%clk 0:00:33.8]} 43. Nxe4 {[%clk 0:00:16.6]}
43... Kxe4 {[%clk 0:00:33.2]} 44. Kb5 {[%clk 0:00:17.3]} 44... Rd5+ {[%clk
0:00:31]} 45. Kc4 {[%clk 0:00:17.8]} 45... Rf5 {[%clk 0:00:30.8]} 46. a5 {[%clk
0:00:17.5]} 46... Rf6 {[%clk 0:00:26.3]} 47. b5 {[%clk 0:00:16.9]} 47... Ke3
{[%clk 0:00:23.7]} 48. Rb1 {[%clk 0:00:15.9]} 48... Rf4+ {[%clk 0:00:22.1]} 49.
Kd5 {[%clk 0:00:15.8]} 49... Kd3 {[%clk 0:00:22.4]} 50. a6 {[%clk 0:00:15.2]}
50... bxa6 {[%clk 0:00:22.1]} 51. bxa6 {[%clk 0:00:16.1]} 51... Ra4 {[%clk
0:00:21.8]} 52. Rb3+ {[%clk 0:00:15.1]} 52... Ke2 {[%clk 0:00:20.1]} 53. Rb2+
{[%clk 0:00:13.1]} 53... Kf3 {[%clk 0:00:20.3]} 54. Rb3+ {[%clk 0:00:13.1]}
54... Be3 {[%clk 0:00:20.5]} 55. Rb5 {[%clk 0:00:11.7]} 55... Rxa6 {[%clk
0:00:20.6]} 56. Kc4 {[%clk 0:00:12.6]} 56... Ke4 {[%clk 0:00:19.3]} 57. Rb4
{[%clk 0:00:12.1]} 57... Bd4 {[%clk 0:00:19]} 58. Kb3 {[%clk 0:00:11.8]} 58...
Ra8 {[%clk 0:00:19.3]} 59. Ra4 {[%clk 0:00:12.1]} 59... Rc8 {[%clk 0:00:18.6]}
60. Rc4 {[%clk 0:00:12.2]} 60... Rb8+ {[%clk 0:00:18.9]} 61. Rb4 {[%clk
0:00:12.7]} 61... Rh8 {[%clk 0:00:19.5]} 62. Ka4 {[%clk 0:00:12.4]} 62... Kd3
{[%clk 0:00:19.6]} 63. Kb3 {[%clk 0:00:12.3]} 63... Rh1 {[%clk 0:00:17.7]} 64.
Rb5 {[%clk 0:00:12.3]} 64... Rb1+ {[%clk 0:00:16.2]} 65. Ka4 {[%clk 0:00:12.4]}
65... Ra1+ {[%clk 0:00:16.5]} 66. Kb3 {[%clk 0:00:12.9]} 66... Ra8 {[%clk
0:00:15.3]} 67. Rb4 {[%clk 0:00:13.2]} 67... Ra7 {[%clk 0:00:14.7]} 68. Rb5
{[%clk 0:00:13.5]} 68... Rc7 {[%clk 0:00:14.9]} 69. Rb4 {[%clk 0:00:13.8]} 69...
Rc3+ {[%clk 0:00:14.8]} 70. Ka4 {[%clk 0:00:14.3]} 70... Bc5 {[%clk 0:00:15]}
71. Rb3 {[%clk 0:00:14]} 71... Kc4 {[%clk 0:00:15.2]} 72. Rxc3+ {[%clk 0:00:14]}
72... Kxc3 {[%clk 0:00:16.1]} 1/2-1/2

[Event "*** Titled Tuesday Blitz"]
[Site "Chess.com"]
[Date "2020.04.28"]
[Round "2"]
[White "louis198"]
[Black "Ovsiannikov_Maxim"]
[Result "1-0"]
[WhiteElo "2467"]
[BlackElo "2243"]
[TimeControl "180+1"]
[EndTime "10:19:37 PDT"]
[Termination "louis198 won by checkmate"]

1. d4 {[%clk 0:03:00.9]} 1... d5 {[%clk 0:02:59.5]} 2. Bf4 {[%clk 0:02:59.1]}
2... Nc6 {[%clk 0:03:00]} 3. e3 {[%clk 0:02:59.3]} 3... Bf5 {[%clk 0:02:59.9]}
4. Bd3 {[%clk 0:02:58.7]} 4... Bxd3 {[%clk 0:02:58.6]} 5. Qxd3 {[%clk
0:02:58.9]} 5... a6 {[%clk 0:02:59.1]} 6. Nf3 {[%clk 0:02:57.8]} 6... Nf6 {[%clk
0:02:59.3]} 7. h3 {[%clk 0:02:57.9]} 7... e6 {[%clk 0:02:59.1]} 8. O-O {[%clk
0:02:58]} 8... Bd6 {[%clk 0:02:59]} 9. Bxd6 {[%clk 0:02:56.2]} 9... Qxd6 {[%clk
0:02:58.7]} 10. a3 {[%clk 0:02:56.8]} 10... O-O {[%clk 0:02:58.1]} 11. Nbd2
{[%clk 0:02:57]} 11... Rac8 {[%clk 0:02:56.7]} 12. c4 {[%clk 0:02:56.6]} 12...
dxc4 {[%clk 0:02:51.9]} 13. Nxc4 {[%clk 0:02:56.1]} 13... Qe7 {[%clk 0:02:51]}
14. Rac1 {[%clk 0:02:55.1]} 14... Rfd8 {[%clk 0:02:51.2]} 15. Qb3 {[%clk
0:02:52.1]} 15... b5 {[%clk 0:02:50.3]} 16. Nce5 {[%clk 0:02:50.6]} 16... Nxe5
{[%clk 0:02:49.4]} 17. Nxe5 {[%clk 0:02:49.6]} 17... c5 {[%clk 0:02:43.3]} 18.
dxc5 {[%clk 0:02:48.4]} 18... Rd5 {[%clk 0:02:34.5]} 19. Nd3 {[%clk 0:02:41.6]}
19... Ne4 {[%clk 0:02:33.2]} 20. c6 {[%clk 0:02:40.6]} 20... Nd2 {[%clk
0:02:32.6]} 21. Qc3 {[%clk 0:02:31.1]} 21... Nxf1 {[%clk 0:02:31.3]} 22. Kxf1
{[%clk 0:02:31.7]} 22... Qd6 {[%clk 0:02:28.4]} 23. Nb4 {[%clk 0:02:27.7]} 23...
Rd1+ {[%clk 0:02:27]} 24. Ke2 {[%clk 0:02:28]} 24... Rxc1 {[%clk 0:02:25.3]} 25.
Qxc1 {[%clk 0:02:28.5]} 25... a5 {[%clk 0:02:25.5]} 26. Nd3 {[%clk 0:02:28.6]}
26... Qxc6 {[%clk 0:02:24.9]} 27. Qe1 {[%clk 0:02:26.1]} 27... Qc2+ {[%clk
0:02:19.8]} 28. Qd2 {[%clk 0:02:26.5]} 28... Qxd2+ {[%clk 0:02:19.4]} 29. Kxd2
{[%clk 0:02:26.8]} 29... f6 {[%clk 0:02:17.4]} 30. b3 {[%clk 0:02:25.8]} 30...
Kf7 {[%clk 0:02:16.9]} 31. f3 {[%clk 0:02:26.1]} 31... e5 {[%clk 0:02:16]} 32.
e4 {[%clk 0:02:26]} 32... Ke6 {[%clk 0:02:16.3]} 33. b4 {[%clk 0:02:25.4]} 33...
axb4 {[%clk 0:02:15.7]} 34. axb4 {[%clk 0:02:25.4]} 34... Ra8 {[%clk 0:02:16]}
35. Nc5+ {[%clk 0:02:25.3]} 35... Kf7 {[%clk 0:02:13.9]} 36. g4 {[%clk
0:02:22.7]} 36... Ra2+ {[%clk 0:02:13.6]} 37. Ke3 {[%clk 0:02:22.6]} 37... Rh2
{[%clk 0:02:13.5]} 38. Na6 {[%clk 0:02:22.9]} 38... Rc2 {[%clk 0:02:09.5]} 39.
Kd3 {[%clk 0:02:21.9]} 39... Rc6 {[%clk 0:02:06.9]} 40. Nc5 {[%clk 0:02:21.3]}
40... Ke7 {[%clk 0:02:06.9]} 41. h4 {[%clk 0:02:15.7]} 41... Kd6 {[%clk
0:02:06.3]} 42. Nb7+ {[%clk 0:02:16]} 42... Kc7 {[%clk 0:02:06.7]} 43. Na5
{[%clk 0:02:14.8]} 43... Rd6+ {[%clk 0:02:05.1]} 44. Kc3 {[%clk 0:02:09]} 44...
Kb6 {[%clk 0:02:05.4]} 45. Nb3 {[%clk 0:02:08.9]} 45... Rc6+ {[%clk 0:02:04.6]}
46. Kd3 {[%clk 0:02:03.7]} 46... Rd6+ {[%clk 0:02:02.2]} 47. Ke3 {[%clk
0:02:02.1]} 47... Rd1 {[%clk 0:01:54.7]} 48. Nc5 {[%clk 0:02:01.9]} 48... Kc6
{[%clk 0:01:51.8]} 49. h5 {[%clk 0:02:01.2]} 49... h6 {[%clk 0:01:48.2]} 50. Ne6
{[%clk 0:02:00]} 50... Rd7 {[%clk 0:01:46.5]} 51. Nc5 {[%clk 0:01:58.2]} 51...
Ra7 {[%clk 0:01:46.5]} 52. Ne6 {[%clk 0:01:56.9]} 52... Ra4 {[%clk 0:01:39.9]}
53. Nxg7 {[%clk 0:01:55.6]} 53... Rxb4 {[%clk 0:01:40.4]} 54. Nf5 {[%clk
0:01:55.9]} 54... Rb3+ {[%clk 0:01:40.8]} 55. Ke2 {[%clk 0:01:55.1]} 55... Ra3
{[%clk 0:01:39.8]} 56. Nxh6 {[%clk 0:01:55.2]} 56... b4 {[%clk 0:01:40.7]} 57.
Nf7 {[%clk 0:01:54.2]} 57... b3 {[%clk 0:01:41]} 58. Kd3 {[%clk 0:01:54.6]}
58... b2+ {[%clk 0:01:41]} 59. Kc2 {[%clk 0:01:54.8]} 59... Rb3 {[%clk
0:01:41.1]} 60. Kb1 {[%clk 0:01:55]} 60... Rxf3 {[%clk 0:01:40.3]} 61. Kxb2
{[%clk 0:01:54.3]} 61... Rh3 {[%clk 0:01:28.5]} 62. Kc2 {[%clk 0:01:47.4]} 62...
Kd7 {[%clk 0:01:27.5]} 63. Kd2 {[%clk 0:01:43.8]} 63... Ke7 {[%clk 0:01:27.7]}
64. Nh6 {[%clk 0:01:43]} 64... Kd6 {[%clk 0:01:14.9]} 65. Nf5+ {[%clk
0:01:42.4]} 65... Kc5 {[%clk 0:01:15.1]} 66. Ke2 {[%clk 0:01:41.6]} 66... Kc4
{[%clk 0:01:15.5]} 67. Nd6+ {[%clk 0:01:35]} 67... Kd4 {[%clk 0:01:13.7]} 68.
Kf2 {[%clk 0:01:31.4]} 68... Kd3 {[%clk 0:01:07.1]} 69. Kg2 {[%clk 0:01:30]}
69... Rh4 {[%clk 0:01:05.1]} 70. Kg3 {[%clk 0:01:27.6]} 70... Rh1 {[%clk
0:01:05.6]} 71. Kg2 {[%clk 0:01:27.9]} 71... Ra1 {[%clk 0:01:06]} 72. h6 {[%clk
0:01:27.8]} 72... Ra8 {[%clk 0:01:05.1]} 73. Kf3 {[%clk 0:01:25.1]} 73... Rh8
{[%clk 0:01:00.4]} 74. Nf5 {[%clk 0:01:18.5]} 74... Rh7 {[%clk 0:00:59.9]} 75.
Kg3 {[%clk 0:01:13.5]} 75... Kxe4 {[%clk 0:00:58.6]} 76. Kh4 {[%clk 0:01:14.4]}
76... Kf4 {[%clk 0:00:57.3]} 77. Kh5 {[%clk 0:01:14.6]} 77... e4 {[%clk
0:00:55.3]} 78. Kg6 {[%clk 0:01:12.3]} 78... Rh8 {[%clk 0:00:54.1]} 79. Kg7
{[%clk 0:01:12]} 79... Ra8 {[%clk 0:00:54.2]} 80. Ne7 {[%clk 0:01:06.3]} 80...
e3 {[%clk 0:00:52.7]} 81. h7 {[%clk 0:01:06]} 81... e2 {[%clk 0:00:52.9]} 82.
Ng8 {[%clk 0:01:05.3]} 82... e1=Q {[%clk 0:00:52.5]} 83. h8=Q {[%clk 0:01:05.4]}
83... Qg3 {[%clk 0:00:35.8]} 84. Qh6+ {[%clk 0:00:58.6]} 84... Kf3 {[%clk
0:00:36]} 85. Nxf6 {[%clk 0:00:58.1]} 85... Qxg4+ {[%clk 0:00:35.7]} 86. Nxg4
{[%clk 0:00:57.8]} 86... Kxg4 {[%clk 0:00:36]} 87. Qg6+ {[%clk 0:00:57.4]} 87...
Kf4 {[%clk 0:00:32.8]} 88. Qd6+ {[%clk 0:00:56.9]} 88... Ke4 {[%clk 0:00:31]}
89. Qc6+ {[%clk 0:00:56.9]} 89... Ke5 {[%clk 0:00:19.1]} 90. Qxa8 {[%clk
0:00:56.5]} 90... Kd6 {[%clk 0:00:19.8]} 91. Qa5 {[%clk 0:00:55.6]} 91... Kc6
{[%clk 0:00:19.6]} 92. Kf6 {[%clk 0:00:55.9]} 92... Kb7 {[%clk 0:00:20.5]} 93.
Ke7 {[%clk 0:00:52.2]} 93... Kb8 {[%clk 0:00:20.8]} 94. Kd6 {[%clk 0:00:48.8]}
94... Kb7 {[%clk 0:00:21.7]} 95. Qc7+ {[%clk 0:00:48.3]} 95... Ka8 {[%clk
0:00:21.8]} 96. Qg7 {[%clk 0:00:48.2]} 96... Kb8 {[%clk 0:00:21.8]} 97. Kc6
{[%clk 0:00:48.3]} 97... Ka8 {[%clk 0:00:22.7]} 98. Qb7# {[%clk 0:00:48.2]} 1-0

[Event "*** Titled Tuesday Blitz"]
[Site "Chess.com"]
[Date "2020.04.28"]
[Round "2"]
[White "talman67"]
[Black "BillieKimbah"]
[Result "1/2-1/2"]
[WhiteElo "2558"]
[BlackElo "2847"]
[TimeControl "180+1"]
[EndTime "10:19:44 PDT"]
[Termination "Game drawn - insufficient material"]

1. e4 {[%clk 0:03:00.9]} 1... c5 {[%clk 0:02:59.1]} 2. Nf3 {[%clk 0:03:01.2]}
2... e6 {[%clk 0:02:58.8]} 3. d4 {[%clk 0:03:01.7]} 3... cxd4 {[%clk 0:02:58.6]}
4. Nxd4 {[%clk 0:03:02.6]} 4... Nf6 {[%clk 0:02:58.8]} 5. Nc3 {[%clk 0:03:02.9]}
5... Nc6 {[%clk 0:02:59.3]} 6. Ndb5 {[%clk 0:03:00.1]} 6... Bc5 {[%clk
0:02:57.9]} 7. Bf4 {[%clk 0:02:53.2]} 7... O-O {[%clk 0:02:57]} 8. Bd6 {[%clk
0:02:52]} 8... Bxd6 {[%clk 0:02:45.2]} 9. Qxd6 {[%clk 0:02:43.4]} 9... Qb6
{[%clk 0:02:07.8]} 10. Qc7 {[%clk 0:02:33.7]} 10... Qc5 {[%clk 0:01:51.7]} 11.
Qd6 {[%clk 0:02:27.7]} 11... Qb6 {[%clk 0:01:48.9]} 12. Qc7 {[%clk 0:02:27.5]}
12... Qxc7 {[%clk 0:01:48.6]} 13. Nxc7 {[%clk 0:02:28.4]} 13... Rb8 {[%clk
0:01:49.2]} 14. N7b5 {[%clk 0:02:28.7]} 14... d5 {[%clk 0:01:37.5]} 15. exd5
{[%clk 0:02:26.4]} 15... exd5 {[%clk 0:01:34.6]} 16. O-O-O {[%clk 0:02:24.3]}
16... Rd8 {[%clk 0:01:27.1]} 17. h3 {[%clk 0:02:05.5]} 17... Bf5 {[%clk
0:01:24.5]} 18. Nd4 {[%clk 0:01:58.1]} 18... Bg6 {[%clk 0:01:24.1]} 19. g4
{[%clk 0:01:56.8]} 19... h6 {[%clk 0:01:22.6]} 20. Bg2 {[%clk 0:01:56.5]} 20...
Rbc8 {[%clk 0:01:17.6]} 21. f4 {[%clk 0:01:43.1]} 21... Be4 {[%clk 0:01:11.5]}
22. Nxe4 {[%clk 0:01:34]} 22... Nxe4 {[%clk 0:01:09.2]} 23. Nxc6 {[%clk
0:01:19.9]} 23... bxc6 {[%clk 0:01:07.8]} 24. Bxe4 {[%clk 0:01:20.4]} 24... dxe4
{[%clk 0:01:08.7]} 25. Rxd8+ {[%clk 0:01:20.6]} 25... Rxd8 {[%clk 0:01:09.2]}
26. Re1 {[%clk 0:01:21.4]} 26... Re8 {[%clk 0:01:07.4]} 27. Re3 {[%clk
0:01:02.1]} 27... g5 {[%clk 0:00:45.9]} 28. fxg5 {[%clk 0:00:53.9]} 28... hxg5
{[%clk 0:00:46.8]} 29. Kd2 {[%clk 0:00:46.7]} 29... Kg7 {[%clk 0:00:46.3]} 30.
Ra3 {[%clk 0:00:29.1]} 30... Rh8 {[%clk 0:00:39.2]} 31. Ke2 {[%clk 0:00:06.4]}
31... Kf6 {[%clk 0:00:37.4]} 32. Rxa7 {[%clk 0:00:03.1]} 32... Rxh3 {[%clk
0:00:36.5]} 33. a4 {[%clk 0:00:04]} 33... Rh2+ {[%clk 0:00:32.5]} 34. Ke3 {[%clk
0:00:04.4]} 34... Rxc2 {[%clk 0:00:32.3]} 35. Rb7 {[%clk 0:00:04.7]} 35... Rc4
{[%clk 0:00:15.5]} 36. b3 {[%clk 0:00:05]} 36... Rc1 {[%clk 0:00:13.2]} 37. Kxe4
{[%clk 0:00:05.4]} 37... Rg1 {[%clk 0:00:13.3]} 38. Kf3 {[%clk 0:00:05.2]} 38...
Rf1+ {[%clk 0:00:13.5]} 39. Kg2 {[%clk 0:00:04.3]} 39... Rf4 {[%clk 0:00:12.6]}
40. Kg3 {[%clk 0:00:04.5]} 40... Rf1 {[%clk 0:00:12.3]} 41. Rc7 {[%clk
0:00:03.1]} 41... Rc1 {[%clk 0:00:10.1]} 42. a5 {[%clk 0:00:03.1]} 42... Rc3+
{[%clk 0:00:10.1]} 43. Kg2 {[%clk 0:00:02.8]} 43... Rxb3 {[%clk 0:00:09.2]} 44.
a6 {[%clk 0:00:03.2]} 44... Ra3 {[%clk 0:00:07.9]} 45. Rxc6+ {[%clk 0:00:03.6]}
45... Ke5 {[%clk 0:00:08.2]} 46. Rb6 {[%clk 0:00:04]} 46... Kf4 {[%clk 0:00:07]}
47. Rb4+ {[%clk 0:00:04.5]} 47... Ke5 {[%clk 0:00:07.3]} 48. Rb5+ {[%clk
0:00:05]} 48... Kf4 {[%clk 0:00:07.1]} 49. Rb4+ {[%clk 0:00:05.2]} 49... Ke3
{[%clk 0:00:07.3]} 50. Rb6 {[%clk 0:00:05.2]} 50... Ra2+ {[%clk 0:00:07.3]} 51.
Kg3 {[%clk 0:00:05]} 51... Ke4 {[%clk 0:00:07.6]} 52. Rb4+ {[%clk 0:00:04.6]}
52... Ke5 {[%clk 0:00:07.8]} 53. Rb5+ {[%clk 0:00:05.1]} 53... Kf6 {[%clk
0:00:07.5]} 54. Rb6+ {[%clk 0:00:05.5]} 54... Ke7 {[%clk 0:00:07.3]} 55. Rb7+
{[%clk 0:00:05.9]} 55... Ke6 {[%clk 0:00:07.7]} 56. a7 {[%clk 0:00:06.1]} 56...
f6 {[%clk 0:00:07.7]} 57. Kf3 {[%clk 0:00:04.1]} 57... Ke5 {[%clk 0:00:07.6]}
58. Rb5+ {[%clk 0:00:03.6]} 58... Kd4 {[%clk 0:00:07.4]} 59. Rb7 {[%clk
0:00:04.2]} 59... Ra3+ {[%clk 0:00:07.2]} 60. Kg2 {[%clk 0:00:04.8]} 60... Ke4
{[%clk 0:00:06.4]} 61. Rb4+ {[%clk 0:00:04.9]} 61... Ke5 {[%clk 0:00:06.6]} 62.
Rb5+ {[%clk 0:00:05.2]} 62... Kf4 {[%clk 0:00:06.5]} 63. Rb4+ {[%clk 0:00:05.6]}
63... Ke5 {[%clk 0:00:06.4]} 64. Rb5+ {[%clk 0:00:06]} 64... Ke4 {[%clk
0:00:06.8]} 65. Rb4+ {[%clk 0:00:06.1]} 65... Kd5 {[%clk 0:00:07.1]} 66. Rb5+
{[%clk 0:00:06.5]} 66... Kc6 {[%clk 0:00:07.1]} 67. Rf5 {[%clk 0:00:06.5]} 67...
Rxa7 {[%clk 0:00:04]} 68. Rxf6+ {[%clk 0:00:06.5]} 68... Kd5 {[%clk 0:00:04.4]}
69. Rf5+ {[%clk 0:00:06.6]} 69... Ke4 {[%clk 0:00:03.6]} 70. Rxg5 {[%clk
0:00:07.2]} 70... Kf4 {[%clk 0:00:03.4]} 71. Rg8 {[%clk 0:00:07.1]} 71... Ra3
{[%clk 0:00:03.3]} 72. g5 {[%clk 0:00:06.7]} 72... Rg3+ {[%clk 0:00:03.3]} 73.
Kf2 {[%clk 0:00:07.3]} 73... Rxg5 {[%clk 0:00:04.2]} 74. Rxg5 {[%clk 0:00:07.3]}
74... Kxg5 {[%clk 0:00:05.1]} 1/2-1/2